[Event "January 2 Late 2024"]
[Site "https://www.chess.com"]
[Date "2024.01.02"]
[Round "8"]
[White "Jaque Gutierrez, Matias"]
[Black "Vanek, Tomas"]
[Result "1-0"]
[Board "130"]
[TimeControl "180+1"]
[WhiteFideId "3426980"]
[BlackFideId "313459"]
[WhiteElo "2428"]
[BlackElo "2280"]
[WhiteTeam "CHI"]
[BlackTeam "CZE"]
[WhiteClock "0:00:36"]
[BlackClock "0:00:02"]

1. d4 {[%clk 0:03:00]}  f5 {[%clk 0:02:59]} 2. c4 {[%clk 0:03:00]}  Nf6 {[%clk 0:02:55]} 3. g3 {[%clk 0:03:01]}  g6 {[%clk 0:02:49]} 4. Bg2 {[%clk 0:03:01]}  Bg7 {[%clk 0:02:49]} 5. Nf3 {[%clk 0:03:01]}  O-O {[%clk 0:02:49]} 6. O-O {[%clk 0:03:01]}  d6 {[%clk 0:02:49]} 7. Nc3 {[%clk 0:02:56]}  c6 {[%clk 0:02:48]} 8. Qb3 {[%clk 0:02:50]}  e6 {[%clk 0:02:45]} 9. Bf4 {[%clk 0:02:44]}  h6 {[%clk 0:02:37]} 10. Rfd1 {[%clk 0:02:39]}  g5 {[%clk 0:02:37]} 11. Bc1 {[%clk 0:02:39]}  Na6 {[%clk 0:02:33]} 12. h4 {[%clk 0:02:34]}  g4 {[%clk 0:02:30]} 13. Ne1 {[%clk 0:02:34]}  Nc7 {[%clk 0:02:24]} 14. Nd3 {[%clk 0:02:33]}  Nh5 {[%clk 0:02:20]} 15. d5 {[%clk 0:02:13]}  cxd5 {[%clk 0:02:16]} 16. cxd5 {[%clk 0:02:10]}  e5 {[%clk 0:02:16]} 17. Bd2 {[%clk 0:01:39]}  Kh8 {[%clk 0:01:45]} 18. e3 {[%clk 0:01:32]}  f4 {[%clk 0:01:34]} 19. exf4 {[%clk 0:01:31]}  exf4 {[%clk 0:01:34]} 20. Nxf4 {[%clk 0:01:32]}  Nxf4 {[%clk 0:01:34]} 21. Bxf4 {[%clk 0:01:32]}  Rxf4 {[%clk 0:01:31]} 22. gxf4 {[%clk 0:01:33]}  Qxh4 {[%clk 0:01:31]} 23. Ne4 {[%clk 0:01:30]}  Ne8 {[%clk 0:01:15]} 24. Rac1 {[%clk 0:01:24]}  Qe7 {[%clk 0:01:00]} 25. Re1 {[%clk 0:01:16]}  Qf7 {[%clk 0:00:44]} 26. Qe3 {[%clk 0:01:01]}  Bxb2 {[%clk 0:00:44]} 27. Rc2 {[%clk 0:00:55]}  Bg7 {[%clk 0:00:42]} 28. Ng5 {[%clk 0:00:53]}  hxg5 {[%clk 0:00:37]} 29. Qxe8+ {[%clk 0:00:53]}  Qxe8 {[%clk 0:00:22]} 30. Rxe8+ {[%clk 0:00:54]}  Kh7 {[%clk 0:00:21]} 31. Be4+ {[%clk 0:00:54]}  Kh6 {[%clk 0:00:19]} 32. fxg5+ {[%clk 0:00:55]}  Kxg5 {[%clk 0:00:18]} 33. Rcxc8 {[%clk 0:00:54]}  Rxc8 {[%clk 0:00:18]} 34. Rxc8 {[%clk 0:00:55]}  Kf4 {[%clk 0:00:17]} 35. Bc2 {[%clk 0:00:53]}  Bd4 {[%clk 0:00:17]} 36. Kg2 {[%clk 0:00:52]}  Ke5 {[%clk 0:00:17]} 37. Bb3 {[%clk 0:00:52]}  Bc5 {[%clk 0:00:15]} 38. Rc7 {[%clk 0:00:50]}  b5 {[%clk 0:00:15]} 39. Rg7 {[%clk 0:00:49]}  Kf4 {[%clk 0:00:12]} 40. Rf7+ {[%clk 0:00:50]}  Ke5 {[%clk 0:00:12]} 41. Kg3 {[%clk 0:00:50]}  a5 {[%clk 0:00:10]} 42. Kxg4 {[%clk 0:00:45]}  a4 {[%clk 0:00:10]} 43. Bd1 {[%clk 0:00:45]}  Kxd5 {[%clk 0:00:10]} 44. f4 {[%clk 0:00:45]}  Bd4 {[%clk 0:00:10]} 45. Rb7 {[%clk 0:00:39]}  Kc5 {[%clk 0:00:09]} 46. a3 {[%clk 0:00:37]}  Bb2 {[%clk 0:00:07]} 47. Be2 {[%clk 0:00:37]}  Bxa3 {[%clk 0:00:05]} 48. Rxb5+ {[%clk 0:00:38]}  Kc6 {[%clk 0:00:05]} 49. Ra5 {[%clk 0:00:38]}  Bc5 {[%clk 0:00:04]} 50. Rxa4 {[%clk 0:00:38]}  Kd5 {[%clk 0:00:05]} 51. Bf3+ {[%clk 0:00:38]}  Ke6 {[%clk 0:00:06]} 52. f5+ {[%clk 0:00:38]}  Kf6 {[%clk 0:00:07]} 53. Ra8 {[%clk 0:00:38]}  d5 {[%clk 0:00:06]} 54. Bxd5 {[%clk 0:00:38]}  Ba7 {[%clk 0:00:04]} 55. Rxa7 {[%clk 0:00:36]}  Ke5 {[%clk 0:00:04]} 56. Kg5 {[%clk 0:00:36]}  Kd6 {[%clk 0:00:04]} 57. f6 {[%clk 0:00:37]}  Ke5 {[%clk 0:00:04]} 58. f7 {[%clk 0:00:37]}  Kd6 {[%clk 0:00:02]} 59. f8=Q+ {[%clk 0:00:36]} 1-0

[Event "January 2 Late 2024"]
[Site "https://www.chess.com"]
[Date "2024.01.02"]
[Round "8"]
[White "Slavin, Alexey"]
[Black "Spichkin, Alexander"]
[Result "1-0"]
[Board "131"]
[TimeControl "180+1"]
[WhiteFideId "24104388"]
[BlackFideId "4144074"]
[WhiteElo "2271"]
[BlackElo "2425"]
[WhiteTeam "RUS"]
[BlackTeam "RUS"]
[WhiteClock "0:00:34"]
[BlackClock "0:01:48"]

1. e4 {[%clk 0:02:58]}  e5 {[%clk 0:02:57]} 2. Nf3 {[%clk 0:02:58]}  d5 {[%clk 0:02:58]} 3. Nc3 {[%clk 0:02:55]}  dxe4 {[%clk 0:02:58]} 4. Nxe4 {[%clk 0:02:55]}  f5 {[%clk 0:02:56]} 5. Ng3 {[%clk 0:02:48]}  e4 {[%clk 0:02:55]} 6. Qe2 {[%clk 0:02:46]}  Nf6 {[%clk 0:02:54]} 7. d3 {[%clk 0:02:44]}  Be7 {[%clk 0:02:48]} 8. dxe4 {[%clk 0:02:44]}  O-O {[%clk 0:02:40]} 9. e5 {[%clk 0:02:38]}  Ng4 {[%clk 0:02:39]} 10. h3 {[%clk 0:02:35]}  Nh6 {[%clk 0:02:32]} 11. Qc4+ {[%clk 0:02:29]}  Kh8 {[%clk 0:02:31]} 12. Bd3 {[%clk 0:02:28]}  Nf7 {[%clk 0:02:27]} 13. O-O {[%clk 0:02:25]}  Nc6 {[%clk 0:02:27]} 14. Re1 {[%clk 0:02:24]}  a6 {[%clk 0:02:25]} 15. a4 {[%clk 0:01:39]}  Na5 {[%clk 0:02:25]} 16. Qa2 {[%clk 0:01:32]}  b5 {[%clk 0:02:23]} 17. Nxf5 {[%clk 0:01:19]}  Bxf5 {[%clk 0:02:20]} 18. Bxf5 {[%clk 0:01:19]}  Nc4 {[%clk 0:02:09]} 19. axb5 {[%clk 0:01:13]}  axb5 {[%clk 0:02:07]} 20. Qxa8 {[%clk 0:01:13]}  Qxa8 {[%clk 0:02:07]} 21. Rxa8 {[%clk 0:01:12]}  Rxa8 {[%clk 0:02:08]} 22. e6 {[%clk 0:01:07]}  Nfd6 {[%clk 0:02:07]} 23. Bd3 {[%clk 0:01:06]}  h6 {[%clk 0:02:04]} 24. b3 {[%clk 0:01:04]}  Nb6 {[%clk 0:02:02]} 25. Ne5 {[%clk 0:00:57]}  g5 {[%clk 0:01:58]} 26. Ng6+ {[%clk 0:00:56]}  Kg7 {[%clk 0:01:57]} 27. Nxe7 {[%clk 0:00:57]}  Re8 {[%clk 0:01:57]} 28. Nf5+ {[%clk 0:00:55]}  Nxf5 {[%clk 0:01:58]} 29. Bxf5 {[%clk 0:00:55]}  Kf6 {[%clk 0:01:58]} 30. g4 {[%clk 0:00:55]}  Nd5 {[%clk 0:01:57]} 31. Bb2+ {[%clk 0:00:55]}  Ke7 {[%clk 0:01:58]} 32. Rd1 {[%clk 0:00:52]}  Nb6 {[%clk 0:01:56]} 33. Bd4 {[%clk 0:00:44]}  Rc8 {[%clk 0:01:55]} 34. Bxb6 {[%clk 0:00:40]}  cxb6 {[%clk 0:01:54]} 35. Rd7+ {[%clk 0:00:40]}  Kf6 {[%clk 0:01:55]} 36. Rf7+ {[%clk 0:00:36]}  Ke5 {[%clk 0:01:52]} 37. e7 {[%clk 0:00:36]}  Re8 {[%clk 0:01:48]} 38. Bd7 {[%clk 0:00:34]} 1-0

[Event "January 2 Late 2024"]
[Site "https://www.chess.com"]
[Date "2024.01.02"]
[Round "8"]
[White "Rees, Ioan"]
[Black "Clawitter, Craig"]
[Result "1-0"]
[Board "132"]
[TimeControl "180+1"]
[WhiteFideId "1801236"]
[BlackFideId "2023105"]
[WhiteElo "2424"]
[BlackElo "2243"]
[WhiteTeam "WLS"]
[BlackTeam "USA"]
[WhiteClock "0:01:17"]
[BlackClock "0:00:05"]

1. e4 {[%clk 0:03:00]}  e6 {[%clk 0:03:00]} 2. b3 {[%clk 0:02:59]}  d5 {[%clk 0:02:59]} 3. Bb2 {[%clk 0:02:59]}  Nf6 {[%clk 0:02:59]} 4. e5 {[%clk 0:02:57]}  Nfd7 {[%clk 0:02:59]} 5. f4 {[%clk 0:02:58]}  c5 {[%clk 0:02:59]} 6. Nf3 {[%clk 0:02:57]}  Nc6 {[%clk 0:02:58]} 7. Bb5 {[%clk 0:02:54]}  g6 {[%clk 0:02:44]} 8. Qe2 {[%clk 0:02:49]}  Bg7 {[%clk 0:02:42]} 9. O-O {[%clk 0:02:48]}  O-O {[%clk 0:02:40]} 10. c3 {[%clk 0:02:44]}  Ne7 {[%clk 0:02:27]} 11. d4 {[%clk 0:02:41]}  b6 {[%clk 0:02:08]} 12. Na3 {[%clk 0:02:32]}  a6 {[%clk 0:02:03]} 13. Bd3 {[%clk 0:02:24]}  b5 {[%clk 0:01:54]} 14. Rad1 {[%clk 0:02:18]}  Qc7 {[%clk 0:01:30]} 15. Nc2 {[%clk 0:02:15]}  c4 {[%clk 0:01:28]} 16. Ba3 {[%clk 0:02:08]}  cxd3 {[%clk 0:00:53]} 17. Rxd3 {[%clk 0:02:09]}  Re8 {[%clk 0:00:50]} 18. g4 {[%clk 0:02:09]}  Bf8 {[%clk 0:00:42]} 19. Ng5 {[%clk 0:02:06]}  Nc6 {[%clk 0:00:34]} 20. Bxf8 {[%clk 0:02:01]}  Nxf8 {[%clk 0:00:33]} 21. f5 {[%clk 0:01:59]}  exf5 {[%clk 0:00:20]} 22. gxf5 {[%clk 0:02:00]}  Bxf5 {[%clk 0:00:18]} 23. Rg3 {[%clk 0:01:55]}  Ne7 {[%clk 0:00:13]} 24. Ne3 {[%clk 0:01:54]}  Be6 {[%clk 0:00:12]} 25. Qf2 {[%clk 0:01:43]}  h6 {[%clk 0:00:11]} 26. Nxf7 {[%clk 0:01:42]}  Qxc3 {[%clk 0:00:08]} 27. Nxh6+ {[%clk 0:01:38]}  Kh7 {[%clk 0:00:07]} 28. Nhg4 {[%clk 0:01:33]}  Qxd4 {[%clk 0:00:07]} 29. Nf6+ {[%clk 0:01:32]}  Kg7 {[%clk 0:00:07]} 30. Nxe8+ {[%clk 0:01:24]}  Rxe8 {[%clk 0:00:06]} 31. Qf6+ {[%clk 0:01:23]}  Kg8 {[%clk 0:00:06]} 32. Rh3 {[%clk 0:01:19]}  Nf5 {[%clk 0:00:05]} 33. Rh8# {[%clk 0:01:17]} 1-0

[Event "January 2 Late 2024"]
[Site "https://www.chess.com"]
[Date "2024.01.02"]
[Round "8"]
[White "Hajiyev, Kanan"]
[Black "Kovacevic, Radmila"]
[Result "0-1"]
[Board "135"]
[TimeControl "180+1"]
[WhiteFideId "13404148"]
[BlackFideId "933171"]
[WhiteElo "2597"]
[BlackElo "2185"]
[WhiteTeam "AZE"]
[BlackTeam "SRB"]
[WhiteClock "0:00:00"]
[BlackClock "0:00:01"]

1. b3 {[%clk 0:03:00]}  c5 {[%clk 0:02:56]} 2. Bb2 {[%clk 0:03:01]}  Nc6 {[%clk 0:02:56]} 3. Nf3 {[%clk 0:03:02]}  d6 {[%clk 0:02:55]} 4. e3 {[%clk 0:03:03]}  e5 {[%clk 0:02:55]} 5. Be2 {[%clk 0:03:03]}  f5 {[%clk 0:02:50]} 6. O-O {[%clk 0:03:03]}  Nf6 {[%clk 0:02:49]} 7. d4 {[%clk 0:03:04]}  e4 {[%clk 0:02:49]} 8. Ne1 {[%clk 0:02:56]}  cxd4 {[%clk 0:02:48]} 9. exd4 {[%clk 0:02:56]}  d5 {[%clk 0:02:46]} 10. c4 {[%clk 0:02:56]}  Be6 {[%clk 0:02:43]} 11. Nc3 {[%clk 0:02:56]}  Bb4 {[%clk 0:02:40]} 12. Nc2 {[%clk 0:02:53]}  Bd6 {[%clk 0:02:18]} 13. cxd5 {[%clk 0:02:40]}  Bxd5 {[%clk 0:02:11]} 14. Ne3 {[%clk 0:02:38]}  Ne7 {[%clk 0:02:04]} 15. Bb5+ {[%clk 0:02:25]}  Kf7 {[%clk 0:01:57]} 16. Ncxd5 {[%clk 0:02:18]}  Nfxd5 {[%clk 0:01:53]} 17. Bc4 {[%clk 0:02:13]}  Bf4 {[%clk 0:01:39]} 18. Bxd5+ {[%clk 0:02:00]}  Nxd5 {[%clk 0:01:38]} 19. Nxf5 {[%clk 0:02:00]}  Qg5 {[%clk 0:01:23]} 20. Ne3 {[%clk 0:01:31]}  Rhd8 {[%clk 0:01:23]} 21. Qc2 {[%clk 0:01:19]}  Nf6 {[%clk 0:01:16]} 22. Qc4+ {[%clk 0:01:06]}  Kg6 {[%clk 0:01:14]} 23. Rae1 {[%clk 0:00:55]}  Rac8 {[%clk 0:01:11]} 24. Qe6 {[%clk 0:00:53]}  Rc6 {[%clk 0:01:06]} 25. Qh3 {[%clk 0:00:51]}  h5 {[%clk 0:01:01]} 26. Nc4 {[%clk 0:00:45]}  Kh7 {[%clk 0:00:44]} 27. Re2 {[%clk 0:00:35]}  Ng4 {[%clk 0:00:38]} 28. g3 {[%clk 0:00:31]}  Nf6 {[%clk 0:00:37]} 29. d5 {[%clk 0:00:24]}  Rxd5 {[%clk 0:00:30]} 30. Bxf6 {[%clk 0:00:22]}  Rxf6 {[%clk 0:00:27]} 31. Rxe4 {[%clk 0:00:22]}  b5 {[%clk 0:00:20]} 32. Ne3 {[%clk 0:00:15]}  Bxe3 {[%clk 0:00:16]} 33. Rxe3 {[%clk 0:00:16]}  Rd2 {[%clk 0:00:15]} 34. Qg2 {[%clk 0:00:13]}  Rxa2 {[%clk 0:00:12]} 35. Qe4+ {[%clk 0:00:13]}  Kh6 {[%clk 0:00:11]} 36. h4 {[%clk 0:00:12]}  Qg6 {[%clk 0:00:10]} 37. Qe5 {[%clk 0:00:09]}  Rd2 {[%clk 0:00:07]} 38. Qb8 {[%clk 0:00:06]}  Rb2 {[%clk 0:00:06]} 39. Re8 {[%clk 0:00:03]}  Qd3 {[%clk 0:00:04]} 40. Rh8+ {[%clk 0:00:03]}  Kg6 {[%clk 0:00:04]} 41. Qe5 {[%clk 0:00:03]}  Re2 {[%clk 0:00:02]} 42. Qg5+ {[%clk 0:00:02]}  Kf7 {[%clk 0:00:02]} 43. Qxh5+ {[%clk 0:00:00]}  Rg6 {[%clk 0:00:01]} 0-1

[Event "January 2 Late 2024"]
[Site "https://www.chess.com"]
[Date "2024.01.02"]
[Round "8"]
[White "Chocenka, Dmitrijus"]
[Black "Nithyalakshmi, Sivanesan"]
[Result "1-0"]
[Board "140"]
[TimeControl "180+1"]
[WhiteFideId "12802336"]
[BlackFideId "5706955"]
[WhiteElo "2453"]
[BlackElo "2261"]
[WhiteTeam "LTU"]
[BlackTeam "MAS"]
[WhiteClock "0:00:16"]
[BlackClock "0:00:00"]

1. e4 {[%clk 0:03:00]}  e6 {[%clk 0:02:58]} 2. d4 {[%clk 0:03:00]}  d5 {[%clk 0:02:58]} 3. Nc3 {[%clk 0:03:01]}  Nf6 {[%clk 0:02:50]} 4. e5 {[%clk 0:02:59]}  Ng8 {[%clk 0:02:43]} 5. f4 {[%clk 0:02:58]}  Nh6 {[%clk 0:02:42]} 6. Nf3 {[%clk 0:02:57]}  c5 {[%clk 0:02:38]} 7. Ne2 {[%clk 0:02:47]}  Nf5 {[%clk 0:02:35]} 8. c3 {[%clk 0:02:46]}  Nc6 {[%clk 0:02:35]} 9. Ng3 {[%clk 0:02:42]}  Nh4 {[%clk 0:02:29]} 10. Nxh4 {[%clk 0:02:32]}  Qxh4 {[%clk 0:02:28]} 11. Be2 {[%clk 0:02:31]}  Bd7 {[%clk 0:02:07]} 12. O-O {[%clk 0:02:30]}  cxd4 {[%clk 0:01:47]} 13. cxd4 {[%clk 0:02:29]}  Rc8 {[%clk 0:01:48]} 14. Be3 {[%clk 0:02:18]}  Na5 {[%clk 0:01:44]} 15. b3 {[%clk 0:02:12]}  Nc6 {[%clk 0:01:32]} 16. Rc1 {[%clk 0:02:09]}  Ba3 {[%clk 0:01:30]} 17. Rc2 {[%clk 0:02:09]}  O-O {[%clk 0:01:21]} 18. f5 {[%clk 0:02:09]}  exf5 {[%clk 0:01:17]} 19. Rf4 {[%clk 0:02:01]}  Qe7 {[%clk 0:01:15]} 20. Nxf5 {[%clk 0:02:00]}  Bxf5 {[%clk 0:01:13]} 21. Rxf5 {[%clk 0:02:01]}  Nb4 {[%clk 0:00:59]} 22. Rxc8 {[%clk 0:01:34]}  Rxc8 {[%clk 0:00:59]} 23. Bg4 {[%clk 0:01:11]}  Rc2 {[%clk 0:00:57]} 24. Qf3 {[%clk 0:00:56]}  Rxa2 {[%clk 0:00:39]} 25. h3 {[%clk 0:00:54]}  Ra1+ {[%clk 0:00:29]} 26. Kh2 {[%clk 0:00:55]}  Ra2 {[%clk 0:00:17]} 27. Bg5 {[%clk 0:00:46]}  Qc7 {[%clk 0:00:14]} 28. Bf4 {[%clk 0:00:36]}  Qe7 {[%clk 0:00:13]} 29. Bg5 {[%clk 0:00:22]}  Qc7 {[%clk 0:00:12]} 30. Qf4 {[%clk 0:00:19]}  Nd3 {[%clk 0:00:10]} 31. Qg3 {[%clk 0:00:19]}  Bf8 {[%clk 0:00:05]} 32. Rf3 {[%clk 0:00:16]}  Nb4 {[%clk 0:00:04]} 33. e6 {[%clk 0:00:15]}  Qxg3+ {[%clk 0:00:03]} 34. Kxg3 {[%clk 0:00:16]}  f6 {[%clk 0:00:02]} 35. Bf4 {[%clk 0:00:16]}  Nc6 {[%clk 0:00:01]} 36. Rd3 {[%clk 0:00:16]}  Be7 {[%clk 0:00:00]} 37. Bc7 {[%clk 0:00:16]} 1-0

[Event "January 2 Late 2024"]
[Site "https://www.chess.com"]
[Date "2024.01.02"]
[Round "8"]
[White "Ambrogi, Agustin"]
[Black "Curtis, John"]
[Result "0-1"]
[Board "144"]
[TimeControl "180+1"]
[WhiteFideId "170933"]
[BlackFideId "3200256"]
[WhiteElo "2399"]
[BlackElo "2227"]
[WhiteTeam "ARG"]
[BlackTeam "AUS"]
[WhiteClock "0:00:25"]
[BlackClock "0:00:03"]

1. e4 {[%clk 0:03:00]}  d6 {[%clk 0:02:59]} 2. Nc3 {[%clk 0:03:00]}  c5 {[%clk 0:02:56]} 3. f4 {[%clk 0:02:53]}  e6 {[%clk 0:02:55]} 4. Nf3 {[%clk 0:02:53]}  Nf6 {[%clk 0:02:52]} 5. Bb5+ {[%clk 0:02:50]}  Bd7 {[%clk 0:02:48]} 6. e5 {[%clk 0:02:50]}  Nd5 {[%clk 0:02:48]} 7. Nxd5 {[%clk 0:02:49]}  Bxb5 {[%clk 0:02:43]} 8. Nc3 {[%clk 0:02:48]}  Bc6 {[%clk 0:02:43]} 9. O-O {[%clk 0:02:46]}  Nd7 {[%clk 0:02:34]} 10. d3 {[%clk 0:02:42]}  Qc7 {[%clk 0:02:12]} 11. Qe2 {[%clk 0:02:38]}  d5 {[%clk 0:01:44]} 12. f5 {[%clk 0:02:33]}  Be7 {[%clk 0:01:40]} 13. fxe6 {[%clk 0:02:30]}  fxe6 {[%clk 0:01:39]} 14. Bg5 {[%clk 0:02:25]}  Bxg5 {[%clk 0:01:28]} 15. Nxg5 {[%clk 0:02:24]}  Qxe5 {[%clk 0:01:20]} 16. Qh5+ {[%clk 0:02:18]}  g6 {[%clk 0:01:20]} 17. Qh6 {[%clk 0:02:18]}  O-O-O {[%clk 0:01:12]} 18. Nf7 {[%clk 0:01:57]}  Qd4+ {[%clk 0:01:10]} 19. Kh1 {[%clk 0:01:55]}  Rhf8 {[%clk 0:01:09]} 20. Nxd8 {[%clk 0:01:50]}  Rxf1+ {[%clk 0:01:07]} 21. Rxf1 {[%clk 0:01:51]}  Kxd8 {[%clk 0:01:06]} 22. Qxh7 {[%clk 0:01:46]}  Qg4 {[%clk 0:00:55]} 23. h3 {[%clk 0:01:18]}  Qg5 {[%clk 0:00:49]} 24. Qg8+ {[%clk 0:01:15]}  Ke7 {[%clk 0:00:49]} 25. Qf7+ {[%clk 0:01:09]}  Kd6 {[%clk 0:00:49]} 26. Qf4+ {[%clk 0:01:09]}  Qxf4 {[%clk 0:00:48]} 27. Rxf4 {[%clk 0:01:09]}  b5 {[%clk 0:00:43]} 28. Rg4 {[%clk 0:01:05]}  Ne5 {[%clk 0:00:43]} 29. Rg5 {[%clk 0:01:05]}  b4 {[%clk 0:00:43]} 30. Ne2 {[%clk 0:01:05]}  a5 {[%clk 0:00:28]} 31. Nf4 {[%clk 0:01:04]}  Be8 {[%clk 0:00:25]} 32. h4 {[%clk 0:00:55]}  a4 {[%clk 0:00:23]} 33. Kg1 {[%clk 0:00:53]}  c4 {[%clk 0:00:22]} 34. d4 {[%clk 0:00:52]}  Nc6 {[%clk 0:00:21]} 35. c3 {[%clk 0:00:52]}  a3 {[%clk 0:00:18]} 36. bxa3 {[%clk 0:00:47]}  bxc3 {[%clk 0:00:17]} 37. Ne2 {[%clk 0:00:45]}  c2 {[%clk 0:00:17]} 38. Kf2 {[%clk 0:00:36]}  Nxd4 {[%clk 0:00:16]} 39. Nc1 {[%clk 0:00:36]}  e5 {[%clk 0:00:13]} 40. g4 {[%clk 0:00:33]}  Ne6 {[%clk 0:00:09]} 41. Ke3 {[%clk 0:00:30]}  Nxg5 {[%clk 0:00:09]} 42. hxg5 {[%clk 0:00:31]}  d4+ {[%clk 0:00:08]} 43. Kd2 {[%clk 0:00:31]}  d3 {[%clk 0:00:07]} 44. a4 {[%clk 0:00:32]}  Bxa4 {[%clk 0:00:04]} 45. a3 {[%clk 0:00:33]}  Kd5 {[%clk 0:00:04]} 46. Na2 {[%clk 0:00:33]}  Kd4 {[%clk 0:00:04]} 47. Nb4 {[%clk 0:00:25]}  e4 {[%clk 0:00:03]} 0-1

[Event "January 2 Late 2024"]
[Site "https://www.chess.com"]
[Date "2024.01.02"]
[Round "8"]
[White "MiguelEduardoGB"]
[Black "Sokolov, Andrei"]
[Result "1/2-1/2"]
[Board "146"]
[TimeControl "180+1"]
[BlackFideId "11600306"]
[WhiteElo "2202"]
[BlackElo "2356"]
[BlackTeam "LAT"]
[WhiteClock "0:00:12"]
[BlackClock "0:00:07"]

1. b3 {[%clk 0:02:57]}  d5 {[%clk 0:02:57]} 2. Bb2 {[%clk 0:02:57]}  c5 {[%clk 0:02:55]} 3. Nf3 {[%clk 0:02:58]}  Nf6 {[%clk 0:02:54]} 4. e3 {[%clk 0:02:58]}  Nc6 {[%clk 0:02:55]} 5. Bb5 {[%clk 0:02:58]}  a6 {[%clk 0:02:52]} 6. Bxc6+ {[%clk 0:02:58]}  bxc6 {[%clk 0:02:53]} 7. O-O {[%clk 0:02:58]}  Bg4 {[%clk 0:02:52]} 8. d3 {[%clk 0:02:58]}  e6 {[%clk 0:02:50]} 9. Nbd2 {[%clk 0:02:58]}  Bd6 {[%clk 0:02:51]} 10. Qe1 {[%clk 0:02:58]}  O-O {[%clk 0:02:50]} 11. Ne5 {[%clk 0:02:59]}  Qc7 {[%clk 0:02:42]} 12. f4 {[%clk 0:02:54]}  Bh5 {[%clk 0:02:33]} 13. Ndf3 {[%clk 0:02:49]}  Bxf3 {[%clk 0:02:32]} 14. Rxf3 {[%clk 0:02:47]}  Nd7 {[%clk 0:02:33]} 15. Qg3 {[%clk 0:02:39]}  f6 {[%clk 0:02:19]} 16. Nxd7 {[%clk 0:01:40]}  Qxd7 {[%clk 0:02:20]} 17. Qh3 {[%clk 0:01:40]}  Qe7 {[%clk 0:02:12]} 18. Kh1 {[%clk 0:01:37]}  e5 {[%clk 0:02:10]} 19. Raf1 {[%clk 0:01:19]}  e4 {[%clk 0:01:59]} 20. Rg3 {[%clk 0:01:15]}  a5 {[%clk 0:01:53]} 21. a4 {[%clk 0:01:08]}  exd3 {[%clk 0:01:40]} 22. cxd3 {[%clk 0:01:08]}  Rab8 {[%clk 0:01:40]} 23. Qf5 {[%clk 0:00:51]}  Rxb3 {[%clk 0:01:28]} 24. Ba1 {[%clk 0:00:51]}  Qf7 {[%clk 0:00:53]} 25. h4 {[%clk 0:00:37]}  Rb7 {[%clk 0:00:20]} 26. h5 {[%clk 0:00:37]}  h6 {[%clk 0:00:20]} 27. Rg6 {[%clk 0:00:36]}  Qd7 {[%clk 0:00:16]} 28. e4 {[%clk 0:00:25]}  Qxf5 {[%clk 0:00:15]} 29. exf5 {[%clk 0:00:26]}  Kh7 {[%clk 0:00:15]} 30. Rf3 {[%clk 0:00:26]}  Re7 {[%clk 0:00:14]} 31. Rfg3 {[%clk 0:00:26]}  Rfe8 {[%clk 0:00:14]} 32. Kh2 {[%clk 0:00:26]}  Rd7 {[%clk 0:00:14]} 33. Bc3 {[%clk 0:00:23]}  Bf8 {[%clk 0:00:14]} 34. Bxa5 {[%clk 0:00:21]}  Ra8 {[%clk 0:00:14]} 35. Bc3 {[%clk 0:00:20]}  Rxa4 {[%clk 0:00:14]} 36. Bd2 {[%clk 0:00:15]}  Ra3 {[%clk 0:00:12]} 37. Bc1 {[%clk 0:00:13]}  Rb3 {[%clk 0:00:12]} 38. Re3 {[%clk 0:00:12]}  Re7 {[%clk 0:00:11]} 39. Reg3 {[%clk 0:00:10]}  c4 {[%clk 0:00:10]} 40. dxc4 {[%clk 0:00:09]}  Rxg3 {[%clk 0:00:10]} 41. Rxg3 {[%clk 0:00:09]}  dxc4 {[%clk 0:00:11]} 42. Rc3 {[%clk 0:00:10]}  Re4 {[%clk 0:00:11]} 43. Kg3 {[%clk 0:00:08]}  Bb4 {[%clk 0:00:11]} 44. Rc2 {[%clk 0:00:08]}  c3 {[%clk 0:00:12]} 45. Kf3 {[%clk 0:00:09]}  Rc4 {[%clk 0:00:11]} 46. Ke3 {[%clk 0:00:09]}  Bc5+ {[%clk 0:00:11]} 47. Kd3 {[%clk 0:00:09]}  Ra4 {[%clk 0:00:07]} 48. Kxc3 {[%clk 0:00:10]}  Bd4+ {[%clk 0:00:06]} 49. Kd3 {[%clk 0:00:10]}  c5 {[%clk 0:00:06]} 50. Bd2 {[%clk 0:00:10]}  Ra6 {[%clk 0:00:06]} 51. Kc4 {[%clk 0:00:09]}  Ra4+ {[%clk 0:00:06]} 52. Kd5 {[%clk 0:00:09]}  Ra1 {[%clk 0:00:07]} 53. Bc1 {[%clk 0:00:08]}  Ra7 {[%clk 0:00:04]} 54. Bd2 {[%clk 0:00:08]}  Rd7+ {[%clk 0:00:05]} 55. Kc4 {[%clk 0:00:08]}  Re7 {[%clk 0:00:05]} 56. Bc3 {[%clk 0:00:07]}  Re4 {[%clk 0:00:05]} 57. Bxd4 {[%clk 0:00:07]}  cxd4 {[%clk 0:00:05]} 58. Kd3 {[%clk 0:00:07]}  Rxf4 {[%clk 0:00:06]} 59. Rc5 {[%clk 0:00:07]}  Rg4 {[%clk 0:00:05]} 60. Rd5 {[%clk 0:00:06]}  Rxg2 {[%clk 0:00:05]} 61. Kxd4 {[%clk 0:00:06]}  Rg5 {[%clk 0:00:04]} 62. Ke4 {[%clk 0:00:07]}  Rxh5 {[%clk 0:00:04]} 63. Kf4 {[%clk 0:00:08]}  Rh4+ {[%clk 0:00:05]} 64. Kg3 {[%clk 0:00:08]}  Ra4 {[%clk 0:00:05]} 65. Rc5 {[%clk 0:00:07]}  Ra3+ {[%clk 0:00:05]} 66. Kg4 {[%clk 0:00:08]}  Ra4+ {[%clk 0:00:06]} 67. Kh5 {[%clk 0:00:07]}  Ra1 {[%clk 0:00:06]} 68. Rc7 {[%clk 0:00:07]}  Rh1+ {[%clk 0:00:06]} 69. Kg4 {[%clk 0:00:07]}  h5+ {[%clk 0:00:07]} 70. Kg3 {[%clk 0:00:07]}  h4+ {[%clk 0:00:07]} 71. Kg2 {[%clk 0:00:08]}  Rb1 {[%clk 0:00:07]} 72. Rc4 {[%clk 0:00:08]}  Rb2+ {[%clk 0:00:05]} 73. Kh3 {[%clk 0:00:09]}  Rb3+ {[%clk 0:00:05]} 74. Kxh4 {[%clk 0:00:09]}  Rf3 {[%clk 0:00:06]} 75. Kg4 {[%clk 0:00:09]}  Rf1 {[%clk 0:00:06]} 76. Rc7 {[%clk 0:00:10]}  Kh6 {[%clk 0:00:06]} 77. Rc8 {[%clk 0:00:08]}  Rg1+ {[%clk 0:00:06]} 78. Kf4 {[%clk 0:00:08]}  Kh7 {[%clk 0:00:05]} 79. Rc7 {[%clk 0:00:07]}  Rg5 {[%clk 0:00:05]} 80. Rd7 {[%clk 0:00:07]}  Kg8 {[%clk 0:00:03]} 81. Rc7 {[%clk 0:00:07]}  Kh7 {[%clk 0:00:04]} 82. Rd7 {[%clk 0:00:07]}  Rh5 {[%clk 0:00:04]} 83. Rd8 {[%clk 0:00:08]}  Rh4+ {[%clk 0:00:04]} 84. Kg3 {[%clk 0:00:08]}  Ra4 {[%clk 0:00:04]} 85. Rd5 {[%clk 0:00:06]}  Kh6 {[%clk 0:00:04]} 86. Rc5 {[%clk 0:00:06]}  Kg5 {[%clk 0:00:05]} 87. Kf3 {[%clk 0:00:07]}  Ra3+ {[%clk 0:00:04]} 88. Kg2 {[%clk 0:00:07]}  Ra2+ {[%clk 0:00:04]} 89. Kg3 {[%clk 0:00:07]}  Ra3+ {[%clk 0:00:04]} 90. Kg2 {[%clk 0:00:08]}  Re3 {[%clk 0:00:05]} 91. Rc7 {[%clk 0:00:08]}  Kxf5 {[%clk 0:00:05]} 92. Rxg7 {[%clk 0:00:08]}  Re2+ {[%clk 0:00:05]} 93. Kf3 {[%clk 0:00:08]}  Re5 {[%clk 0:00:06]} 94. Rg8 {[%clk 0:00:09]}  Ke6 {[%clk 0:00:06]} 95. Kf4 {[%clk 0:00:09]}  Ra5 {[%clk 0:00:06]} 96. Re8+ {[%clk 0:00:09]}  Kf7 {[%clk 0:00:06]} 97. Rc8 {[%clk 0:00:09]}  Kg6 {[%clk 0:00:06]} 98. Rg8+ {[%clk 0:00:08]}  Kf7 {[%clk 0:00:07]} 99. Rc8 {[%clk 0:00:08]}  Ra4+ {[%clk 0:00:07]} 100. Kf5 {[%clk 0:00:09]}  Ra1 {[%clk 0:00:07]} 101. Rc7+ {[%clk 0:00:09]}  Kf8 {[%clk 0:00:07]} 102. Kxf6 {[%clk 0:00:09]}  Rf1+ {[%clk 0:00:07]} 103. Ke5 {[%clk 0:00:10]}  Re1+ {[%clk 0:00:07]} 104. Kd6 {[%clk 0:00:10]}  Rd1+ {[%clk 0:00:08]} 105. Kc6 {[%clk 0:00:11]}  Rc1+ {[%clk 0:00:08]} 106. Kb7 {[%clk 0:00:12]}  Rxc7+ {[%clk 0:00:07]} 107. Kxc7 {[%clk 0:00:12]} 1/2-1/2